bitfinex-derivatives/quotes_BNBF0:USTF0_20251203
["timestamp","ask_amount","ask_price","bid_price","bid_amount"]
[1764741596988,0.1928667,902.71,901.52,0.67085689]
[1764741597183,0.1928667,902.71,901.53,0.67085689]
[1764741597487,0.1928667,902.71,901.54,0.67085689]
[1764741597684,0.1928667,902.71,901.55,0.67085689]
[1764741597887,0.1928667,902.71,901.56,0.67085689]
[1764741598086,0.1928667,902.71,901.57,0.67085689]
[1764741598284,0.1928667,902.71,901.58,0.67085689]
[1764741598583,0.1928667,902.71,901.59,0.67085689]
[1764741598888,0.1928667,902.71,901.6,0.67085689]
[1764741599187,0.1928667,902.71,901.61,0.67085689]
[1764741599488,0.1928667,902.71,901.62,0.67085689]
[1764741599686,0.1928667,902.71,901.63,0.67085689]
[1764741599888,0.1928667,902.71,901.64,0.67085689]
[1764741600085,0.1928667,902.71,901.65,0.67085689]
[1764741600290,0.1928667,902.71,901.66,0.67085689]
[1764741600590,0.1928667,902.71,901.67,0.67085689]
[1764741600889,0.1928667,902.71,901.6,0.81681016]
[1764741600890,0.1928667,902.71,901.68,0.67085689]
[1764741601088,0.1928667,902.71,901.62,0.81681016]
[1764741601089,0.1928667,902.71,901.69,0.67085689]
[1764741601289,0.1928667,902.71,901.7,0.67085689]
[1764741601486,0.1928667,902.71,901.71,0.67085689]
[1764741601687,0.1928667,902.71,901.72,0.67085689]
[1764741601886,0.1928667,902.71,901.73,0.67085689]
[1764741602084,0.1928667,902.71,901.7,0.81681016]
[1764741602085,0.01076579,903.61,901.74,0.67085689]
[1764741602286,0.01076579,903.61,900.78,0.0092198]
[1764741602287,0.1927492,902.88,902.0,0.81681016]
[1764741602485,0.01385866,903.78,902.01,0.67085689]
[1764741602686,1.68410185,904.01,901.69,1.60913265]
[1764741602687,1.68410185,904.02,902.02,1.48766705]
[1764741602891,0.19271611,902.87,902.03,0.67085689]
[1764741603091,0.0102361,903.77,902.04,0.67085689]
[1764741603386,1.68410185,903.92,902.05,0.67085689]
[1764741603587,1.68410185,903.93,902.06,0.67085689]
[1764741603787,1.68410185,903.93,902.07,0.67085689]
[1764741603991,1.68410185,903.92,902.08,0.67085689]
[1764741604190,0.19274493,903.47,902.09,0.67085689]
[1764741604489,0.19274493,903.47,902.1,0.67085689]
[1764741604691,0.19274493,903.47,902.11,0.67085689]
[1764741604987,0.19274493,903.47,902.12,0.67085689]
[1764741605286,0.19274493,903.47,902.13,0.66765871]
[1764741605487,0.19274493,903.47,902.14,0.66765871]
[1764741605686,0.19274493,903.47,902.01,0.81681016]
[1764741605687,0.19274493,903.47,902.15,0.66765871]
[1764741605887,0.19274493,903.47,902.16,0.66765871]
[1764741606090,0.19274493,903.47,902.17,0.66765871]
[1764741606289,0.19274493,903.47,902.18,0.66765871]
[1764741606492,0.19274493,903.47,902.19,0.66765871]
[1764741606690,0.19274493,903.47,902.2,0.66765871]
[1764741606888,0.19274493,903.47,901.28,0.01086526]
[1764741606889,0.19274493,903.47,902.21,0.66765871]
[1764741607089,0.19274493,903.47,902.22,0.66765871]
[1764741607292,0.19274493,903.47,902.23,0.66765871]
[1764741607494,0.19274493,903.47,902.24,0.66765871]
[1764741607793,0.19274493,903.47,902.25,0.66765871]
[1764741608089,0.19274493,903.47,902.26,0.66765871]
[1764741608289,0.19274493,903.47,902.27,0.66765871]
[1764741608594,0.19274493,903.47,902.28,0.66765871]
[1764741608891,0.19274493,903.47,902.29,0.66765871]
[1764741609093,0.19274493,903.47,902.3,0.66765871]
[1764741609394,0.19274493,903.47,902.31,0.66765871]
[1764741609694,0.19274493,903.47,902.32,0.66765871]
[1764741609893,0.19274493,903.47,902.33,0.66765871]
[1764741610189,0.19274493,903.47,902.34,0.66765871]
[1764741610389,0.19274493,903.47,902.35,0.66765871]
[1764741610594,0.19274493,903.47,902.36,0.66765871]
[1764741610894,0.19274493,903.47,902.07,0.81681016]
[1764741611193,0.19274493,903.47,902.08,0.67542144]
[1764741611392,0.19274493,903.47,902.09,0.67542144]
[1764741611590,0.19274493,903.47,902.1,0.67542144]
[1764741611791,0.19274493,903.47,902.11,0.67542144]
[1764741611993,0.19274493,903.47,902.12,0.67542144]
[1764741612294,0.19274493,903.47,902.13,0.67542144]
[1764741612496,0.19274493,903.47,902.21,0.81681016]
[1764741612690,0.19274493,903.47,902.22,0.67542144]
[1764741612892,0.19274493,903.47,902.23,0.67542144]
[1764741613092,0.19274493,903.47,902.24,0.67542144]
[1764741613295,0.19274493,903.47,902.25,0.67542144]
[1764741613488,0.19274493,903.47,902.26,0.67542144]
[1764741613688,0.19274493,903.47,902.27,0.67542144]
[1764741613892,0.19274493,903.47,902.28,0.67542144]
[1764741614090,0.19274493,903.47,902.29,0.67542144]
[1764741614292,0.19274493,903.47,902.13,1.395]
[1764741614293,0.19274493,903.47,902.3,0.67542144]
[1764741614494,0.19274493,903.47,902.31,0.67542144]
[1764741614694,0.19274493,903.47,902.32,0.67542144]
[1764741614890,0.19274493,903.47,902.33,0.67542144]
[1764741615093,0.19274493,903.47,902.34,0.67542144]
[1764741615290,0.19274493,903.47,902.35,0.67542144]
[1764741615494,0.19274493,903.47,902.36,0.67542144]
[1764741615691,0.19274493,903.47,902.37,0.67542144]
[1764741615897,0.19274493,903.47,902.38,0.67542144]
[1764741616091,0.19274493,903.47,902.13,1.395]
[1764741616092,0.19274493,903.47,902.39,0.67542144]
[1764741616293,0.19274493,903.47,902.4,0.67542144]
[1764741616495,0.19274493,903.47,902.41,0.67542144]
[1764741616793,0.19274493,903.47,902.42,0.67542144]
[1764741617093,0.19274493,903.47,902.43,0.67542144]
[1764741617296,0.19274493,903.47,902.44,0.67542144]
[1764741617495,0.19274493,903.47,902.45,0.67542144]
[1764741617792,0.19274493,903.47,902.46,0.67542144]
[1764741617998,0.19274493,903.47,902.47,0.67542144]
[1764741618294,0.19274493,903.47,902.48,0.67542144]
[1764741618593,0.19274493,903.47,902.49,0.67542144]
[1764741618798,0.0115936,904.82,902.5,0.67542144]
[1764741619000,0.1925439,903.6,902.51,0.67542144]
[1764741619195,0.1925439,903.6,902.52,0.67542144]
[1764741619400,0.01350297,904.5,902.53,0.67542144]
[1764741619599,0.19254231,903.55,902.54,0.67542144]
[1764741619795,0.01211286,904.45,902.55,0.67542144]
[1764741620098,0.01348389,905.35,902.56,0.67542144]
[1764741620295,1.68410185,905.47,902.57,0.67542144]
[1764741620502,1.68410185,905.47,902.58,0.67542144]
[1764741620699,1.68410185,905.47,902.59,0.67542144]
[1764741620913,1.68410185,905.47,902.6,0.67542144]
[1764741621200,0.19253112,904.75,902.61,0.67542144]
[1764741621401,0.19253112,904.75,902.62,0.67542144]
[1764741621698,0.19253112,904.75,902.63,0.67542144]
[1764741621901,0.19253112,904.75,902.64,0.67542144]
[1764741622201,0.19253112,904.75,902.65,0.67542144]
[1764741622398,0.19253112,904.75,902.66,0.67542144]
[1764741622701,0.19253112,904.75,902.67,0.67542144]
[1764741622902,0.19253112,904.75,902.68,0.67542144]
[1764741623099,0.19253112,904.75,902.69,0.67542144]
[1764741623303,0.19253112,904.75,902.7,0.67542144]
[1764741623504,0.19253112,904.75,902.71,0.67542144]
[1764741623702,0.19253112,904.75,902.72,0.67542144]
[1764741623900,0.19253112,904.75,902.44,0.81681016]
[1764741623901,0.19253112,904.75,902.73,0.67542144]
[1764741624100,0.19253112,904.75,902.74,0.66862179]
[1764741624298,0.19253112,904.75,902.48,0.81681016]
[1764741624299,0.19253112,904.75,902.75,0.66862179]
[1764741624497,0.19253112,904.75,902.46,0.81681016]
[1764741624700,0.19253112,904.75,902.47,0.66829587]
[1764741624900,0.19253112,904.75,902.48,0.66829587]
[1764741625100,0.19253112,904.75,902.49,0.66829587]
[1764741625300,0.19253112,904.75,902.5,0.66829587]
[1764741625499,0.19253112,904.75,902.51,0.66829587]
[1764741625704,0.19253112,904.75,902.52,0.66829587]
[1764741625901,0.19253112,904.75,902.53,0.66829587]
[1764741626100,0.19253112,904.75,902.54,0.66829587]
[1764741626304,0.19253112,904.75,902.55,0.66829587]
[1764741626604,0.19253112,904.75,902.56,0.66829587]
[1764741626899,0.19253112,904.75,902.41,0.81681016]
[1764741626900,0.19253112,904.75,902.57,0.66829587]
[1764741627103,0.19253112,904.75,902.58,0.66829587]
[1764741627302,0.19253112,904.75,902.59,0.66829587]
[1764741627500,0.19253112,904.75,902.6,0.66829587]
[1764741627700,0.19253112,904.75,902.61,0.66829587]
[1764741628000,0.19253112,904.75,902.62,0.66829587]
[1764741628303,0.19253112,904.75,902.63,0.66829587]
[1764741628504,0.19253112,904.75,902.64,0.66829587]
[1764741628697,0.19253112,904.75,902.65,0.66829587]
[1764741628901,0.19253112,904.75,902.66,0.66829587]
[1764741629103,0.19253112,904.75,902.37,0.81681016]
[1764741629301,0.19253112,904.75,902.38,0.66659546]
[1764741629506,0.19253112,904.75,902.39,0.66659546]
[1764741629704,0.19253112,904.75,902.4,0.66659546]
[1764741629904,0.19253112,904.75,902.41,0.66659546]
[1764741630102,0.19253112,904.75,902.42,0.66659546]
[1764741630301,0.19253112,904.75,902.43,0.66659546]
[1764741630504,0.19253112,904.75,902.44,0.66659546]
[1764741630704,0.19253112,904.75,902.45,0.66659546]
[1764741630902,0.19253112,904.75,902.46,0.66659546]
[1764741631204,0.19253112,904.75,902.47,0.66659546]
[1764741631404,0.19253112,904.75,902.48,0.66659546]
[1764741631600,0.19253112,904.75,902.49,0.66659546]
[1764741631805,0.19253112,904.75,902.5,0.66659546]
[1764741632100,0.19253112,904.75,902.51,0.66659546]
[1764741632302,0.19253112,904.75,902.52,0.66659546]
[1764741632505,0.19253112,904.75,902.53,0.66659546]
[1764741632702,0.19253112,904.75,902.54,0.66659546]
[1764741632906,0.19253112,904.75,902.47,0.9]
[1764741633104,0.19253112,904.75,902.48,0.6665176]
[1764741633304,0.19253112,904.75,902.49,0.6665176]
[1764741633508,0.19253112,904.75,902.5,0.6665176]
[1764741633707,0.19253112,904.75,902.51,0.6665176]
[1764741634006,0.19253112,904.75,902.52,0.6665176]
[1764741634302,0.19253112,904.75,902.47,0.9]
[1764741634501,0.19253112,904.75,902.48,0.66703488]
[1764741634706,0.19253112,904.75,902.49,0.66703488]
[1764741634904,0.19253112,904.75,902.5,0.66703488]
[1764741635105,0.19253112,904.75,902.51,0.66703488]
[1764741635305,0.19253112,904.75,902.52,0.66703488]
[1764741635503,0.19253112,904.75,902.53,0.66703488]
[1764741635705,0.19253112,904.75,902.54,0.66703488]
[1764741636005,0.19253112,904.75,902.55,0.66703488]
[1764741636204,0.19253112,904.75,902.56,0.66703488]
[1764741636408,0.19253112,904.75,902.57,0.66703488]
[1764741636605,0.19253112,904.75,902.58,0.66703488]
[1764741636809,0.19253112,904.75,902.59,0.66703488]
[1764741637007,0.19253112,904.75,902.6,0.66703488]
[1764741637207,0.19253112,904.75,902.61,0.66703488]
[1764741637411,0.19253112,904.75,902.62,0.66703488]
[1764741637611,0.19253112,904.75,902.63,0.66703488]
[1764741637808,0.19253112,904.75,902.64,0.66703488]
[1764741638011,0.19253112,904.75,902.65,0.66703488]
[1764741638213,0.19253112,904.75,902.66,0.66703488]
[1764741638512,0.19253112,904.75,902.67,0.66703488]
[1764741638711,0.19253112,904.75,902.68,0.66703488]
[1764741639011,0.19253112,904.75,902.69,0.66703488]
[1764741639206,0.19253112,904.75,902.7,0.66703488]
[1764741639405,0.19253112,904.75,902.71,0.66703488]
[1764741639608,0.19253112,904.75,902.72,0.66703488]
[1764741639907,0.19253112,904.75,902.73,0.66703488]
[1764741640107,0.19253112,904.75,902.74,0.66703488]
[1764741640306,0.19253112,904.75,902.47,1.71681016]
[1764741640510,0.19253112,904.75,902.48,1.48628478]
[1764741640711,0.19253112,904.75,902.49,0.66947462]
[1764741640911,0.19253112,904.75,902.5,0.66947462]
[1764741641109,0.19253112,904.75,902.48,0.81681016]
[1764741641110,0.19253112,904.75,902.51,0.66947462]
[1764741641410,0.19253112,904.75,902.52,0.66947462]
[1764741641612,0.19253112,904.75,902.58,0.81681016]
[1764741641812,0.19253112,904.75,902.59,0.66947462]
[1764741642009,0.19253112,904.75,902.6,0.66947462]
[1764741642211,0.19253112,904.75,902.61,0.66947462]
[1764741642414,0.19253112,904.75,902.62,0.66947462]
[1764741642715,0.19253112,904.75,902.63,0.66947462]
[1764741642910,0.19253112,904.75,902.64,1.48628478]
[1764741643115,0.19253112,904.75,902.65,1.48628478]
[1764741643315,0.19253112,904.75,902.79,0.81681016]
[1764741643611,0.19253112,904.75,902.8,0.66947462]
[1764741643811,0.19253112,904.75,902.81,0.66947462]
[1764741644016,0.19253112,904.75,902.82,0.66947462]
[1764741644315,0.19253112,904.75,902.83,0.66947462]
[1764741644514,0.19253112,904.75,902.84,0.66947462]
[1764741644712,0.19253112,904.75,902.85,0.66947462]
[1764741644914,0.19253112,904.75,902.86,0.66947462]
[1764741645112,0.19253112,904.75,902.87,0.66947462]
[1764741645317,0.19253112,904.75,902.88,0.66947462]
[1764741645518,0.19253112,904.75,902.89,0.66947462]
[1764741645716,0.19253112,904.75,902.82,0.81681016]
[1764741645717,0.19253112,904.75,902.9,0.66947462]
[1764741645917,0.19253112,904.75,902.91,0.66947462]
[1764741646117,0.19253112,904.75,902.92,0.66947462]
[1764741646314,0.19253112,904.75,902.93,0.66947462]
[1764741646613,0.19253112,904.75,902.94,0.66947462]
[1764741646818,0.19253112,904.75,902.95,0.66947462]
[1764741647018,0.19253112,904.75,902.96,0.66947462]
[1764741647213,0.19253112,904.75,902.97,0.66947462]
[1764741647417,0.19253112,904.75,902.69,0.81681016]
[1764741647715,0.19253112,904.75,902.7,0.67372632]
[1764741648018,0.19253112,904.75,902.71,0.67372632]
[1764741648317,0.19253112,904.75,902.72,0.67372632]
[1764741648518,0.19253112,904.75,902.73,0.67372632]
[1764741648717,0.19253112,904.75,902.74,0.67372632]
[1764741648918,0.19253112,904.75,902.75,0.67372632]
[1764741649118,0.19253112,904.75,902.76,0.67372632]
[1764741649316,0.19253112,904.75,902.77,0.67372632]
[1764741649615,0.19253112,904.75,902.78,0.67372632]
[1764741649818,0.19253112,904.75,902.79,0.67372632]
[1764741650018,0.19253112,904.75,902.8,0.67372632]
[1764741650318,0.19253112,904.75,902.81,0.67372632]
[1764741650515,0.19253112,904.75,902.82,0.67372632]
[1764741650720,0.19253112,904.75,902.83,0.67372632]
[1764741650920,0.19253112,904.75,902.84,0.67372632]
[1764741651120,0.19253112,904.75,902.85,0.67372632]
[1764741651421,0.19253112,904.75,902.86,0.67372632]
[1764741651618,0.19253112,904.75,902.87,0.67372632]
[1764741651821,0.19253112,904.75,902.88,0.67372632]
[1764741652022,0.19253112,904.75,902.89,0.67372632]
[1764741652223,0.19253112,904.75,902.9,0.67372632]
[1764741652419,0.19253112,904.75,902.91,0.67372632]
[1764741652722,0.19253112,904.75,902.92,0.67372632]
[1764741652924,0.19253112,904.75,902.93,0.67372632]
[1764741653121,0.19253112,904.75,902.94,0.67372632]
[1764741653325,0.19253112,904.75,902.95,0.67372632]
[1764741653625,0.19253112,904.75,902.96,0.67372632]
[1764741653823,0.19253112,904.75,902.97,0.67372632]
[1764741654029,0.19253112,904.75,902.98,0.67372632]
[1764741654226,0.19253112,904.75,902.88,1.323]
[1764741654426,0.19253112,904.75,902.89,0.67619479]
[1764741654627,0.19253112,904.75,902.9,0.67619479]
[1764741654822,0.19253112,904.75,902.91,0.67619479]
[1764741655026,0.19253112,904.75,902.92,0.67619479]
[1764741655228,0.19253112,904.75,902.93,0.67619479]
[1764741655522,0.19253112,904.75,902.94,0.67619479]
[1764741655720,0.19253112,904.75,902.95,0.67619479]
[1764741655926,0.19253112,904.75,902.96,0.67619479]
[1764741656127,0.19253112,904.75,902.97,0.67619479]
[1764741656324,0.19253112,904.75,902.98,0.67619479]
[1764741656527,0.19253112,904.75,902.99,0.67619479]
[1764741656828,0.19253112,904.75,903.0,0.67619479]
[1764741657028,0.19253112,904.75,903.01,0.67619479]
[1764741657325,0.19253112,904.75,903.02,0.67619479]
[1764741657530,0.19253112,904.75,903.03,0.67619479]
[1764741657729,0.19253112,904.75,903.04,0.67619479]
[1764741657924,0.19253112,904.75,903.05,0.67619479]
[1764741658224,0.19253112,904.75,903.06,0.67619479]
[1764741658424,0.19253112,904.75,903.07,0.67619479]
[1764741658623,0.19253112,904.75,903.08,0.67619479]
[1764741658828,0.19253112,904.75,903.09,0.67619479]
[1764741659127,0.19253112,904.75,903.1,0.67619479]
[1764741659330,0.19253112,904.75,903.11,0.67619479]
[1764741659629,0.19253112,904.75,903.12,0.67619479]
[1764741659828,0.19253112,904.75,903.16,0.81681016]
[1764741660026,0.19253112,904.75,903.17,0.67619479]
[1764741660224,0.19253112,904.75,903.16,0.81681016]
[1764741660225,0.19253112,904.75,903.18,0.67619479]
[1764741660428,0.19253112,904.75,903.19,0.67619479]
[1764741660626,0.19253112,904.75,903.2,0.67619479]
[1764741660925,0.19253112,904.75,903.21,0.67619479]
[1764741661229,0.19253112,904.75,903.22,0.67619479]
[1764741661428,0.19253112,904.75,903.23,0.67619479]
[1764741661723,0.19253112,904.75,903.24,0.67619479]
[1764741661926,0.19253112,904.75,903.25,0.67619479]
[1764741662131,0.19253112,904.75,903.31,0.81681016]
[1764741662331,0.19253112,904.75,903.32,1.49300495]
[1764741662533,0.19253112,904.75,903.33,0.67619479]
[1764741662728,0.19253112,904.75,903.34,0.67619479]
[1764741662927,0.19253112,904.75,903.35,0.67619479]
[1764741663132,0.19253112,904.75,903.36,0.67619479]
[1764741663328,0.19253112,904.75,903.37,0.67619479]
[1764741663528,0.19253112,904.75,903.34,0.81681016]
[1764741663529,0.19253112,904.75,903.38,0.67619479]
[1764741663831,0.19253112,904.75,903.39,0.67619479]
[1764741664027,0.19253112,904.75,903.4,0.67619479]
[1764741664230,0.19253112,904.75,903.41,0.67619479]
[1764741664432,0.19253112,904.75,903.42,0.67619479]
[1764741664632,0.19253112,904.75,903.43,0.67619479]
[1764741664930,0.19253112,904.75,903.44,0.67619479]
[1764741665129,0.19253112,904.75,903.45,0.67619479]
[1764741665329,0.19253112,904.75,903.46,0.67619479]
[1764741665630,0.19253112,904.75,903.17,0.81681016]
[1764741665830,0.19253112,904.75,903.18,0.6780559]
[1764741666033,0.19253112,904.75,903.19,0.6780559]
[1764741666234,0.19253112,904.75,903.2,0.6780559]
[1764741666434,0.19253112,904.75,903.21,0.6780559]
[1764741666635,0.19253112,904.75,903.22,0.6780559]
[1764741666935,0.19253112,904.75,903.23,0.6780559]
[1764741667131,0.19253112,904.75,903.24,0.6780559]
[1764741667432,0.19253112,904.75,903.25,0.6780559]
[1764741667636,0.19253112,904.75,903.26,0.6780559]
[1764741667836,0.19253112,904.75,903.27,0.6780559]
[1764741668137,0.19253112,904.75,903.28,0.6780559]
[1764741668436,0.19253112,904.75,903.29,0.6780559]
[1764741668732,0.19253112,904.75,903.3,0.6780559]
[1764741669038,0.19253112,904.75,903.31,0.6780559]
[1764741669238,0.19253112,904.75,903.32,0.6780559]
[1764741669430,0.19253112,904.75,903.33,0.6780559]
[1764741669634,0.19253112,904.75,903.34,0.6780559]
[1764741669836,0.19253112,904.75,903.35,0.6780559]
[1764741670032,0.19253112,904.75,903.36,0.6780559]
[1764741670237,0.19253112,904.75,903.37,0.6780559]
[1764741670438,0.19253112,904.75,903.38,0.6780559]
[1764741670632,0.19253112,904.75,903.39,0.6780559]
[1764741670833,0.19253112,904.75,903.4,0.6780559]
[1764741671034,0.19253112,904.75,903.41,0.6780559]
[1764741671235,0.19253112,904.75,903.42,0.6780559]
[1764741671435,0.19253112,904.75,903.43,0.6780559]
[1764741671738,0.19253112,904.75,903.44,0.6780559]
[1764741672039,1.68410185,904.69,903.11,0.81681016]
[1764741672335,1.68410185,904.63,903.12,0.67921534]
[1764741672535,1.68410185,904.65,903.13,0.67921534]
[1764741672739,1.68410185,904.65,903.14,0.67921534]
[1764741672937,1.68410185,904.65,903.15,0.67921534]
[1764741673135,1.68410185,904.65,903.16,0.67921534]
[1764741673335,1.68410185,904.65,902.88,1.323]
[1764741673336,1.68410185,904.64,903.17,0.67921534]
[1764741673534,1.68410185,904.64,903.11,0.81681016]
[1764741673535,1.68410185,904.64,903.18,0.67921534]
[1764741673740,1.68410185,904.64,903.19,0.67921534]
[1764741674040,0.19253112,904.75,903.41,0.81681016]
[1764741674237,0.19253112,904.75,903.42,0.67921534]
[1764741674436,0.19253112,904.75,903.43,0.67921534]
[1764741674737,0.19253112,904.75,903.44,0.67921534]
[1764741674941,0.19253112,904.75,903.45,0.67921534]
[1764741675136,0.19253112,904.75,903.46,0.67921534]
[1764741675339,0.19253112,904.75,903.47,0.67921534]
[1764741675537,0.19253112,904.75,903.48,0.67921534]
[1764741675738,0.19253112,904.75,903.49,0.67921534]
[1764741676036,0.19253112,904.75,903.5,0.67921534]
[1764741676237,0.19253112,904.75,903.51,0.67921534]
[1764741676440,0.19253112,904.75,903.52,0.67921534]
[1764741676639,0.19253112,904.75,903.59,0.81681016]
[1764741676839,0.19253112,904.75,903.75,0.81681016]
[1764741677038,0.19253112,904.75,903.8,0.81681016]
[1764741677238,0.19253112,904.75,903.81,0.67921534]
[1764741677442,0.19253112,904.75,903.82,0.67921534]
[1764741677640,0.19253112,904.75,903.83,0.67921534]
[1764741677836,0.19253112,904.75,903.84,0.67921534]
[1764741678036,0.19253112,904.75,903.85,0.67921534]
[1764741678241,0.19253112,904.75,903.86,0.67921534]
[1764741678441,0.19253112,904.75,903.87,0.67921534]
[1764741678635,0.19253112,904.75,903.88,0.67921534]
[1764741678840,0.19253112,904.75,903.89,0.67921534]
[1764741679138,0.19253112,904.75,903.9,0.67921534]
[1764741679342,0.19253112,904.75,903.91,0.67921534]
[1764741679542,0.19253112,904.75,903.92,0.67921534]
[1764741679743,0.19253112,904.75,903.93,0.67921534]
[1764741679940,0.19253112,904.75,903.94,0.67921534]
[1764741680139,0.19253112,904.75,903.0,0.00827329]
[1764741680140,0.19253112,904.75,903.95,0.67921534]
[1764741680443,0.19253112,904.75,903.96,0.67921534]
[1764741680639,0.19253112,904.75,903.73,0.81681016]
[1764741680640,0.19253112,904.75,903.97,0.67921534]
[1764741680944,0.19253112,904.75,903.98,0.67921534]
[1764741681239,0.19253112,904.75,903.99,0.67921534]
[1764741681444,0.19253112,904.75,904.0,0.67921534]
[1764741681744,0.19253112,904.75,904.01,0.67921534]
[1764741681943,0.19253112,904.75,903.72,0.81681016]
[1764741682145,0.19253112,904.75,903.73,0.67616076]
[1764741682345,0.19253112,904.75,903.74,0.67616076]
[1764741682646,0.19253112,904.75,903.75,0.67616076]
[1764741682842,0.19253112,904.75,903.76,0.67616076]
[1764741683041,0.19253112,904.75,903.77,0.67616076]
[1764741683244,0.19253112,904.75,903.78,0.67616076]
[1764741683442,0.19253112,904.75,903.79,0.67616076]
[1764741683642,0.19253112,904.75,903.8,0.67616076]
[1764741683945,0.19253112,904.75,903.81,0.67616076]
[1764741684147,0.19253112,904.75,903.82,0.67616076]
[1764741684342,0.19253112,904.75,903.83,0.67616076]
[1764741684546,0.19253112,904.75,903.5,0.81681016]
[1764741684842,0.19253112,904.75,903.51,0.67618857]
[1764741685143,0.19253112,904.75,903.52,0.67618857]
[1764741685447,0.19253112,904.75,903.53,0.67618857]
[1764741685646,0.19253112,904.75,903.54,0.67618857]
[1764741685942,0.19253112,904.75,903.55,0.67618857]
[1764741686142,0.19253112,904.75,903.56,0.67618857]
[1764741686343,0.19253112,904.75,903.57,0.67618857]
[1764741686544,0.19253112,904.75,903.58,0.67618857]
[1764741686747,0.19253112,904.75,903.59,0.67618857]
[1764741686948,0.19253112,904.75,903.6,0.67618857]
[1764741687149,0.19253112,904.75,902.68,0.01189771]
[1764741687150,0.19253112,904.75,903.61,0.67618857]
[1764741687345,0.19253112,904.75,903.62,0.67618857]
[1764741687649,0.19253112,904.75,903.28,0.81681016]
[1764741687849,0.19253112,904.75,903.29,0.67644108]
[1764741688148,0.19253112,904.75,903.3,0.67644108]
[1764741688349,0.19253112,904.75,903.31,1.49325124]
[1764741688544,0.19253112,904.75,903.34,0.81681016]
[1764741688744,0.19253112,904.75,903.35,0.67644108]
[1764741688948,0.19253112,904.75,903.36,0.67644108]
[1764741689248,0.19253112,904.75,903.37,0.67644108]
[1764741689449,0.19253112,904.75,903.38,0.67644108]
[1764741689748,0.19253112,904.75,903.39,0.67644108]
[1764741690045,0.19253112,904.75,903.4,0.67644108]
[1764741690244,0.19253112,904.75,903.41,0.67644108]
[1764741690447,0.19253112,904.75,903.42,0.67644108]
[1764741690645,0.19253112,904.75,903.43,0.67644108]
[1764741690846,0.19253112,904.75,903.44,0.67644108]
[1764741691049,0.19253112,904.75,903.45,0.67644108]
[1764741691248,0.19253112,904.75,903.46,0.67644108]
[1764741691451,0.19253112,904.75,903.47,0.67644108]
[1764741691648,0.19253112,904.75,903.48,0.67644108]
[1764741691851,0.19253112,904.75,903.49,0.67644108]
[1764741692052,0.19253112,904.75,903.5,0.67644108]
[1764741692348,0.19253112,904.75,903.51,0.67644108]
[1764741692552,0.19253112,904.75,903.52,0.67644108]
[1764741692750,0.19253112,904.75,903.53,0.67644108]
[1764741692949,0.19253112,904.75,903.54,0.67644108]
[1764741693150,0.19253112,904.75,903.55,0.67644108]
[1764741693352,0.19253112,904.75,903.56,0.67644108]
[1764741693551,0.19253112,904.75,903.57,0.67644108]
[1764741693751,0.19253112,904.75,903.28,0.81681016]
[1764741693955,0.19253112,904.75,903.29,0.67674854]
[1764741694153,0.19253112,904.75,903.3,0.67674854]
[1764741694352,0.19253112,904.75,903.31,0.67674854]
[1764741694554,0.19253112,904.75,903.32,0.67674854]
[1764741694753,0.19253112,904.75,903.33,0.67674854]
[1764741694952,0.19253112,904.75,903.34,0.67674854]
[1764741695153,0.19253112,904.75,903.35,0.67674854]
[1764741695353,0.19253112,904.75,903.36,0.67674854]
[1764741695553,0.19253112,904.75,903.37,0.67674854]
[1764741695752,0.19253112,904.75,903.38,0.67674854]
[1764741695951,0.19253112,904.75,903.39,0.67674854]
[1764741696153,0.19253112,904.75,903.4,0.67674854]
[1764741696357,0.19253112,904.75,903.11,0.81681016]
[1764741696557,0.19253112,904.75,903.12,0.67278589]
[1764741696759,0.19253112,904.75,903.13,0.67278589]
[1764741697058,1.68410185,904.67,903.14,0.67278589]
[1764741697258,1.68410185,904.67,903.15,0.67278589]
[1764741697559,1.68410185,904.67,903.16,0.67278589]
[1764741697759,1.68410185,904.67,903.17,0.67278589]
[1764741697960,1.68410185,904.67,903.18,0.67278589]
[1764741698159,1.68410185,904.67,903.19,0.67278589]
[1764741698358,1.68410185,904.66,903.03,1.138]
[1764741698561,1.68410185,904.66,903.04,0.67326397]
[1764741698859,1.68410185,904.66,903.05,0.67326397]
[1764741699060,1.68410185,904.66,903.06,0.67326397]
[1764741699259,1.68410185,904.68,903.07,0.67326397]
[1764741699456,0.19253112,904.75,903.08,0.67326397]
[1764741699659,0.19253112,904.75,903.09,0.67326397]
[1764741699860,0.19253112,904.75,903.1,0.67326397]
[1764741700061,0.19253112,904.75,903.11,0.67326397]
[1764741700360,0.19253112,904.75,903.12,0.67326397]
[1764741700560,0.19253112,904.75,903.13,0.67326397]
[1764741700760,0.19253112,904.75,903.14,0.67326397]
[1764741701055,0.19253112,904.75,903.15,0.67326397]
[1764741701259,0.19253112,904.75,903.16,0.67326397]
[1764741701458,0.19253112,904.75,903.17,0.67326397]
[1764741701655,0.19253112,904.75,903.18,0.67326397]
[1764741701856,1.68410185,904.62,903.19,0.67326397]
[1764741702057,1.68410185,904.62,903.2,0.67360557]
[1764741702260,1.68410185,904.63,903.21,0.67358888]
[1764741702458,1.68410185,904.74,903.22,0.67358888]
[1764741702658,1.68410185,904.74,903.23,0.67358888]
[1764741702855,1.68410185,904.74,903.24,0.67358888]